Cogmind - Beta 14 @@@ ROGUE MODE // 2024.12.30 @ 13:57:26 Player: Shimmyarah Result: Self-destructed Performance ------------- Evolutions (0) 0 Regions Visited (5) 1000 Robots Destroyed (33) 165 Value Destroyed (729) 729 Prototype IDs (23) 460 Alien Tech Used (0) 0 Bonus (300) 300 TOTAL SCORE: 2654 Bonus ------- Registered with UFD 300 Cogmind --------- Core Integrity 55/250 Matter 110/300 Energy 275/275 System Corruption 0% Temperature Cool (0) Movement Rolling (100) Location -8/Scraptown Parts ------- > --- POWER (1) -------- Deuterium Engine > --- PROPULSION (2) --- Compact Wheel Compact Wheel > --- UTILITY (2) ------ Actuator Array Hardened Light Armor Plating > --- WEAPON (2) ------- Maul Companion Sword > --- INVENTORY (5) ---- Advanced Sensor Array Transmission Jammer Battle Cannon Bore Cannon Peak State ------------ > --- POWER ------------ Improved Ion Engine > --- PROPULSION ------- Improved Medium Treads Improved Medium Treads > --- UTILITY ---------- Advanced Sensor Array Hardened Medium Armor Plating > --- WEAPON ----------- Bore Cannon Companion Sword > --- INVENTORY -------- Wheel Compact Wheel Matter Compressor Battle Cannon [Rating: 31] Favorites ----------- Power Ion Engine Engine Ion Engine Power Core Light Nuclear Core Propulsion Wheel Treads Light Treads Leg Aluminum Leg Wheel Wheel Utility Large Storage Unit Device Seismic Detector Storage Large Storage Unit Protection Hardened Medium Armor Plating Weapon Medium Laser Energy Gun Medium Laser Ballistic Gun Assault Rifle Ballistic Cannon Battle Cannon Special Weapon Mining Laser Impact Weapon Maul Slashing Weapon Companion Sword Build | -11 -10 -10 -10 -8 -8 ------- Run | Yrd Mat Min Sub Rec Scr Slots Evolved . | . . . . . . Power . | . . . . . . Propulsion . | . . . . . . Utility . | . . . . . . Weapon . | . . . . . . Parts Attached 96 | 1 11 17 23 3 41 Power 10 | . 2 2 1 1 4 Engine 8 | . 2 1 1 1 3 Core 2 | . . 1 . . 1 Reactor . | . . . . . . Propulsion 24 | . 4 4 7 1 8 Treads 8 | . 2 1 3 . 2 Leg 3 | . . 2 1 . . Wheel 13 | . 2 1 3 1 6 Hover . | . . . . . . Flight . | . . . . . . Utility 41 | 1 5 7 7 1 20 Device 22 | 1 2 4 6 1 8 Storage 12 | . 2 . . . 10 Processor . | . . . . . . Hackware . | . . . . . . Protection 7 | . 1 3 1 . 2 Artifact . | . . . . . . Weapon 21 | . . 4 8 . 9 Energy Gun 9 | . . 2 3 . 4 Energy Cannon . | . . . . . . Ballistic Gun 2 | . . 1 1 . . Ballistic Cannon 5 | . . . 2 . 3 Launcher . | . . . . . . Special Weapon 1 | . . 1 . . . Impact Weapon 1 | . . . . . 1 Slashing Weapon 3 | . . . 2 . 1 Piercing Weapon . | . . . . . . Special Melee Weapon . | . . . . . . Unidentified Prototypes 1 | . . . . . 1 Parts Lost 4 | . . 4 . . . Power . | . . . . . . Propulsion . | . . . . . . Utility 1 | . . 1 . . . Weapon 3 | . . 3 . . . Highest Loss Streak 2 | . . 2 . . . To Critical Strikes . | . . . . . . Average Slot Usage (%) 73 | . 100 99 100 100 54 Engine 7 | . 14 10 14 14 2 Treads 4 | . 18 9 1 9 1 Leg 3 | . 4 6 13 . . Wheel 19 | . 4 12 13 18 25 Device 5 | . 10 8 12 14 1 Storage 12 | . 16 14 14 14 11 Protection 1 | . 1 5 1 . 1 Energy Gun 7 | . 14 13 18 . 1 Ballistic Gun 3 | . 14 11 5 . . Ballistic Cannon 3 | . . . 3 28 1 Slashing Weapon 2 | . . . . . 3 Peak Build Rating 31 | 8 8 13 15 17 31 Average Rating 9 | 6 8 9 11 15 8 On Entrance 10 | 6 8 8 10 15 17 Naked Turns 81 | . . . . . 81 Heaviest Build 44 | 13 39 30 38 38 44 Greatest Support 60 | 20 40 20 20 26 60 Greatest Overweight (x) 9 | . 2 2 3 2 9 Average Overweight (x) . | . . 1 2 1 . Largest Inventory Capacity 15 | 8 15 15 15 15 15 Average Capacity 13 | 8 14 15 15 15 12 Most Carried 15 | 8 15 15 15 15 15 Average Carried 8 | 6 13 14 14 14 4 Final Capacity 15 | 8 15 15 15 15 5 Final Carried 15 | 8 15 15 15 15 4 Class Distribution -------------------- 85% | Mutant 8% | Scavenger-Mutant 3% | Gladiator Dominant Class ---------------- Mutant | -10/Materials Mutant | -10/Mines Mutant | -10/Subcaves Mutant | -8/Recycling Mutant | -8/Scraptown Resources | -11 -10 -10 -10 -8 -8 ----------- Run | Yrd Mat Min Sub Rec Scr Matter Collected 1367 | 240 197 232 278 . 420 Remotely . | . . . . . . Salvage Created 983 | 155 319 265 244 . . Parts 66 | 22 15 14 15 . . Haulers Intercepted 2 | . 2 . . . . Recyclers Shooed . | . . . . . . Parts Field Recycled . | . . . . . . Retrieved Matter . | . . . . . . Parts Self-Destructed 14 | . . . 14 . . Prevented . | . . . . . . Kills | -11 -10 -10 -10 -8 -8 ------- Run | Yrd Mat Min Sub Rec Scr Combat Hostiles Destroyed 20 | . 6 6 8 . . Guns 19 | . 5 6 8 . . Classes Destroyed 9 | 2 5 . 2 . . Tunneler 5 | 5 . . . . . Hauler 2 | . 2 . . . . Recycler 1 | 1 . . . . . Operator 1 | . 1 . . . . Turret 2 | . . . 2 . . Watcher 2 | . 2 . . . . Swarmer 7 | . 3 . 4 . . Grunt 11 | . 3 6 2 . . Subdweller 2 | . . . 2 . . Best Kill Streak 4 | 4 3 2 4 . . Combat Bots Only 4 | . 3 2 4 . . Max Kills in Single Turn 1 | 1 1 1 1 . . Gunslinging . | . . . . . . Exploded . | . . . . . . Melee . | . . . . . . Uniques/NPCs Destroyed . | . . . . . . Combat | -11 -10 -10 -10 -8 -8 -------- Run | Yrd Mat Min Sub Rec Scr Hostile Shots Fired 194 | . 41 46 101 6 . Missed 61 | . 9 9 41 2 . Damage Taken 1404 | . 316 509 520 59 . Core 195 | . 13 75 93 14 . Absorbed by Shields . | . . . . . . Redirected to Shielding 60 | . 9 44 7 . . Core Remaining (%) 100 | 100 . . . . . Volleys Fired 121 | 10 43 33 34 1 . Largest 2 | 2 2 2 2 2 . Hottest 115 | 70 70 100 115 96 . Shots Fired 234 | 20 85 60 67 2 . Gun 206 | 20 85 56 45 . . Cannon 24 | . . . 22 2 . Launcher . | . . . . . . Special 4 | . . 4 . . . Kinetic 119 | 10 43 30 34 2 . Thermal 115 | 10 42 30 33 . . Explosive . | . . . . . . Electromagnetic . | . . . . . . Robot Hit Streak 13 | 13 12 5 13 3 . Robot Miss Streak 3 | 1 3 2 3 . . Penetration Max . | . . . . . . Secondary Targets 1 | . . . 1 . . Max Gunslinging Chain 1 | . . . 1 . . Shots Hit Robots 144 | 15 62 36 29 2 . Core Hits 53 | 7 17 17 12 . . Critical Kills 1 | . . . 1 . . Critical Parts Destroyed 2 | . . 1 1 . . Critical Strikes 5 | . 2 1 2 . . Burn 2 | . 2 . . . . Destroy 3 | . . 1 2 . . Melee Attacks 2 | . . . 2 . . Impact . | . . . . . . Slashing 2 | . . . 2 . . Piercing . | . . . . . . Sneak Attacks . | . . . . . . Combat Hostiles . | . . . . . . Follow-up Attacks . | . . . . . . Damage Inflicted 1862 | 197 769 360 495 41 . Guns 1647 | 197 769 360 321 . . Cannons 215 | . . . 174 41 . Explosions . | . . . . . . Melee . | . . . . . . Ramming . | . . . . . . Kinetic 947 | 98 359 184 265 41 . Thermal 915 | 99 410 176 230 . . Explosive . | . . . . . . Electromagnetic . | . . . . . . Impact . | . . . . . . Slashing . | . . . . . . Piercing . | . . . . . . Highest Corruption . | . . . . . . Average Corruption . | . . . . . . Corruption Purged . | . . . . . . Corruption Blocked . | . . . . . . Overload Shots . | . . . . . . Overflow Damage 12 | . . . 12 . . Projectiles 12 | . . . 12 . . Explosions . | . . . . . . Melee . | . . . . . . Knockbacks 2 | . . . 2 . . Impact . | . . . . . . Kinetic 2 | . . . 2 . . Secondary . | . . . . . . Self-Inflicted Damage . | . . . . . . Shots . | . . . . . . Rammed . | . . . . . . Targets Rammed . | . . . . . . Kicked . | . . . . . . Crushed . | . . . . . . Highest Temperature 228 | 45 228 139 10 36 . Average Temperature 46 | 20 56 45 5 22 . Received Heat Transfer 726 | . 102 303 294 27 . Siege Activations . | . . . . . . Robots Corrupted . | . . . . . . Combat Hostiles . | . . . . . . Parts Fried . | . . . . . . Impact Corruptions . | . . . . . . Robots Melted 1 | . 1 . . . . Combat Hostiles 1 | . 1 . . . . Parts Melted 2 | . 2 . . . . Heat Transferred 2705 | 296 1369 411 629 . . Parts Sabotaged . | . . . . . . Parts Stolen . | . . . . . . Parts Stripped . | . . . . . . Power Chain Reactions . | . . . . . . Alert | -11 -10 -10 -10 -8 -8 ------- Run | Yrd Mat Min Sub Rec Scr Peak Influence 170 | 30 170 152 . 59 . Initial 32 | . 19 27 . 32 . Average 56 | 15 36 113 . 57 . Maximum Alert Level . | . . . . . . Low Security (%) 100 | 100 100 100 . 100 . Level 1 . | . . . . . . Level 2 . | . . . . . . Level 3 . | . . . . . . Level 4 . | . . . . . . Level 5 . | . . . . . . High Security . | . . . . . . Max Security . | . . . . . . Squads Dispatched 2 | . 2 . . . . Investigation 2 | . 2 . . . . Extermination . | . . . . . . Reinforcement . | . . . . . . Assault . | . . . . . . Garrison . | . . . . . . Intercept . | . . . . . . Searches Triggered . | . . . . . . Construction Impeded . | . . . . . . Haulers Reinforced . | . . . . . . Active Scanning Responses . | . . . . . . Cargo Convoy Interrupts . | . . . . . . Stealth | -11 -10 -10 -10 -8 -8 --------- Run | Yrd Mat Min Sub Rec Scr Distress Signals 1 | . 1 . . . . Communications Jammed . | . . . . . . Distress Signals . | . . . . . . Times Spotted 40 | . 19 7 13 1 . Peak Tracking Total 6 | . 4 3 6 1 . Tactical Retreats 4 | . 1 1 2 . . Traps | -11 -10 -10 -10 -8 -8 ------- Run | Yrd Mat Min Sub Rec Scr Traps Triggered 2 | . 2 . . . . Indirectly . | . . . . . . Trap Hack Attempts . | . . . . . . Triggered . | . . . . . . Disarmed . | . . . . . . Reprogrammed . | . . . . . . Reused . | . . . . . . Traps Extracted . | . . . . . . Installed . | . . . . . . Triggered . | . . . . . . Most Traps Carried 1 | . . . . . 1 Machines | -11 -10 -10 -10 -8 -8 ---------- Run | Yrd Mat Min Sub Rec Scr Machines Disabled 3 | . . . 3 . . Max in Single Turn 1 | . . . 1 . . Machines Repaired . | . . . . . . Machines Dismantled . | . . . . . . Machines Sabotaged . | . . . . . . Overloaded Fab Kills . | . . . . . . Hacking | -11 -10 -10 -10 -8 -8 --------- Run | Yrd Mat Min Sub Rec Scr Machines Accessed 23 | . 8 . 1 3 11 Terminals 9 | . 7 . . 2 . Fabricators . | . . . . . . Repair Stations . | . . . . . . Recycling Units 2 | . 1 . . 1 . Scanalyzers . | . . . . . . Garrison Access . | . . . . . . Total Hacks 121 | . 23 . 9 15 74 Successful 103 | . 12 . 9 8 74 Failed 18 | . 11 . . 7 . Catastrophic 1 | . . . . 1 . Database Lockouts . | . . . . . . Manual 21 | . 14 . . 7 . Terminals 29 | . 21 . . 8 . Fabricators . | . . . . . . Repair Stations . | . . . . . . Recycling Units 9 | . 2 . . 7 . Scanalyzers . | . . . . . . Garrison Access . | . . . . . . Terminal Hacks 90 | . 4 . 9 3 74 Record 80 | . . . 8 . 72 Part Schematic 1 | . . . . 1 . Prototype ID Bank 2 | . 1 . . 1 . Open Door 1 | . . . . . 1 Patrol Status 1 | . 1 . . . . Transport Status 1 | . 1 . . . . Hauler Manifests 1 | . 1 . . . . Registered Components 1 | . . . . 1 . Derelict Proto ID Bank 2 | . . . 1 . 1 Fabricator Hacks . | . . . . . . Repair Station Hacks . | . . . . . . Recycling Unit Hacks 4 | . . . . 4 . Report Inventory 1 | . . . . 1 . Retrieve Matter 2 | . . . . 2 . Retrieve Components 1 | . . . . 1 . Scanalyzer . | . . . . . . Garrison Access Hacks . | . . . . . . Unauthorized Hacks 9 | . 8 . . 1 . Terminals 9 | . 8 . . 1 . Botnet 4 | . 3 . . 1 . Skim 5 | . 5 . . . . Fabricators . | . . . . . . Repair Stations . | . . . . . . Recycling Units . | . . . . . . Scanalyzers . | . . . . . . Garrison Access . | . . . . . . Data Cores Recovered 1 | . 1 . . . . Used 1 | . 1 . . . . Hacking Detections 11 | . 8 . . 3 . Full Trace Events 2 | . 1 . . 1 . Feedback Events . | . . . . . . Feedback Blocked . | . . . . . . Robot Schematics Acquired . | . . . . . . Robots Built . | . . . . . . Authchips . | . . . . . . Time . | . . . . . . Total Robot Build Rating . | . . . . . . Part Schematics Acquired 1 | . . . . 1 . Parts Built . | . . . . . . Authchips . | . . . . . . Time . | . . . . . . Total Part Build Rating . | . . . . . . Parts Repaired . | . . . . . . Time . | . . . . . . Parts Recycled . | . . . . . . Recycled Matter . | . . . . . . Retrieved Matter . | . . . . . . Retrieved Components . | . . . . . . Parts Scanalyzed . | . . . . . . Part Schematics Acquired . | . . . . . . Parts Damaged . | . . . . . . Bothacking | -11 -10 -10 -10 -8 -8 ------------ Run | Yrd Mat Min Sub Rec Scr Used RIF Installer . | . . . . . . Robots Hacked . | . . . . . . Non-combat . | . . . . . . Combat . | . . . . . . Robot Hacks Applied . | . . . . . . Relay Couplers Released . | . . . . . . Fabnet Peak Effective % . | . . . . . . Robots Rewired . | . . . . . . Allies Hacked . | . . . . . . Hacks Repelled . | . . . . . . Allies | -11 -10 -10 -10 -8 -8 -------- Run | Yrd Mat Min Sub Rec Scr Total Allies . | . . . . . . Largest Group . | . . . . . . Highest-Rated Group . | . . . . . . Highest-Rated Ally . | . . . . . . Total Orders . | . . . . . . Ally Attacks . | . . . . . . Total Damage . | . . . . . . Kills . | . . . . . . Allies Corrupted . | . . . . . . Allies Melted . | . . . . . . Intel | -11 -10 -10 -10 -8 -8 ------- Run | Yrd Mat Min Sub Rec Scr Robot Analysis Total . | . . . . . . Derelict Logs Recovered 1 | . . 1 . . . Drone Launches . | . . . . . . Drone Recoveries . | . . . . . . Exploration | -11 -10 -10 -10 -8 -8 ------------- Run | Yrd Mat Min Sub Rec Scr Turns Passed 7196 | 90 982 398 1295 348 4083 Spaces Moved 6080 | 32 561 183 905 268 4131 Core 141 | . . . . . 141 Treads 454 | . 300 6 11 . 137 Legs 65 | 32 33 . . . . Wheels 5420 | . 228 177 894 268 3853 Hover . | . . . . . . Flight . | . . . . . . Fastest Speed 50 | 120 110 110 110 105 50 Average Speed 103 | 120 137 116 125 121 92 Slowest Speed 500 | 120 160 240 240 130 500 Overloaded Moves . | . . . . . . Propulsion Burnouts . | . . . . . . Robots Hopped . | . . . . . . Cave-ins Triggered . | . . . . . . Exploration Rate (%) 47 | 4 68 32 57 26 96 Regions Visited 5 Branch Regions 4 Pre-discovered Areas 5 | . 2 . . . 3 Known Exits Taken 2 | . 1 1 . . . Unknown Exits Taken 3 | 1 . . 1 1 . Scrap Searched 9 | . . 1 . . 8 Spaces Dug . | . . . . . . Terrain Destroyed 2 | . . . 2 . . Melee . | . . . . . . Projectile 2 | . . . 2 . . AOE . | . . . . . . Terrain Rammed . | . . . . . . Walls Destroyed . | . . . . . . Machines Disabled . | . . . . . . Actions | -11 -10 -10 -10 -8 -8 --------- Run | Yrd Mat Min Sub Rec Scr Total 6733 | 63 683 300 983 289 4415 Wait 139 | 18 49 55 11 6 . Move 6075 | 31 560 182 904 267 4131 Hop . | . . . . . . Pick Up 186 | 3 13 8 3 6 153 Fast Attach 11 | . . 1 . . 10 Attach 25 | 1 . 4 1 . 19 Detach . | . . . . . . Swap 60 | . 11 12 22 3 12 Drop 114 | . 7 5 6 6 90 Fire 121 | 10 43 33 34 1 . Melee 2 | . . . 2 . . Ram . | . . . . . . Kick . | . . . . . . Crush . | . . . . . . Escape Stasis . | . . . . . . Rewire . | . . . . . . Trap . | . . . . . . Miscellaneous . | . . . . . . Route ------- -11/Scrapyard -10/Materials (discovered 5 exits: *Mat x3 / *Min / Sub) -10/Mines (discovered 3 exits: *Mat x2 / *Sub) -10/Subcaves (discovered 3 exits: [*Mat x2] / *Rec) -8/Recycling -8/Scraptown (discovered 2 exits: [*Fac x2]) History --------- Turn | Location | Event 1 | -11/Scrapyard | Discovered new exit (range 2) 91 | -11/Scrapyard | Entered Materials 306 | -10/Materials | Discovered new exit (range 10) 310 | -10/Materials | Build established: Mutant 701 | -10/Materials | Identified exit to Materials 733 | -10/Materials | Identified exit to Mines 733 | -10/Materials | Identified exit to Subcaves 753 | -10/Materials | Learned location of Subcaves (-10) 762 | -10/Materials | Learned 4 Recycling zone layouts 763 | -10/Materials | Learned 2 Mines zone layouts 764 | -10/Materials | Learned Storage trap positions 765 | -10/Materials | Learned 4 Recycling zone layouts 771 | -10/Materials | Learned location of Storage (-8) 1073 | -10/Materials | Entered Mines 1188 | -10/Mines | Learned Materials terminal intel 1281 | -10/Mines | Discovered exit to Materials (range 6) 1379 | -10/Mines | Assembled infested the area 1384 | -10/Mines | Assisted by a Guerilla fighting off Assembled 1471 | -10/Mines | Entered Subcaves 1779 | -10/Subcaves | Discovered new exit (range 6) 2136 | -10/Subcaves | Visited 4L-MR0's lab 2153 | -10/Subcaves | Found Arachnoskeleton 2544 | -10/Subcaves | Shifting Twisted Machinery released Battle Cannon 2555 | -10/Subcaves | Shifting Twisted Machinery released Sub. Monowheel 2564 | -10/Subcaves | A swath of the cavern ceiling suddenly collapsed 2580 | -10/Subcaves | Discovered new exit (range 15) 2614 | -10/Subcaves | Discovered new exit (range 12) 2615 | -10/Subcaves | Core integrity fell below 50% 2766 | -10/Subcaves | Entered Recycling 2834 | -8/Recycling | Scanned before Scraplab entrance 2854 | -8/Recycling | Entered Scraplab 3113 | -8/Recycling | Discovered new exit (range 2) 3114 | -8/Recycling | Entered Scraptown 3212 | -8/Scraptown | Heard Great Nut preacher, LISTEN AND RECITE! 3219 | -8/Scraptown | Visited Fellowship of the Rings 3250 | -8/Scraptown | Released all parts (7) 3257 | -8/Scraptown | Visited UFD Registry 3257 | -8/Scraptown | Registered with UFD as "Phasewalker" 3261 | -8/Scraptown | Visited SPCMW 3289 | -8/Scraptown | Visited Red Mages 4413 | -8/Scraptown | Discovered new exit (range 5) 4578 | -8/Scraptown | Visited Awakened 4613 | -8/Scraptown | Visited Cyclists 4636 | -8/Scraptown | Entered Cyclist Reading Room 4677 | -8/Scraptown | Visited Bundlers 4956 | -8/Scraptown | Visited Junk Repository 5060 | -8/Scraptown | Visited Curators Association 5190 | -8/Scraptown | Visited Science Testing Area 5225 | -8/Scraptown | Visited Derelict Rescue Squad 5236 | -8/Scraptown | Found DRS Beacon 5395 | -8/Scraptown | Visited DA-N13 Charitable Foundation 5401 | -8/Scraptown | Found DCF Scrap (28 items) 5744 | -8/Scraptown | Visited Scrap Suit Storage 5753 | -8/Scraptown | Found Scrap Suit 5755 | -8/Scraptown | Found Scrap Suit 5757 | -8/Scraptown | Found Scrap Suit 5759 | -8/Scraptown | Found Scrap Suit 5766 | -8/Scraptown | Found Scrap Suit 5768 | -8/Scraptown | Found Scrap Suit 5770 | -8/Scraptown | Found Scrap Suit 5888 | -8/Scraptown | Found Scrap Suit 5960 | -8/Scraptown | Visited Abandonware Association 5972 | -8/Scraptown | Learned abandonware demo "OVRCLOCK.EXE" 5978 | -8/Scraptown | Learned abandonware demo "ERRANTS.EXE" 5978 | -8/Scraptown | Learned abandonware demo "MELTYB.EXE" 5993 | -8/Scraptown | Visited Cartography Club 6020 | -8/Scraptown | Visited Sword Containment 6065 | -8/Scraptown | Visited A0-MCA Data Center 6081 | -8/Scraptown | Visited Science Guys 6420 | -8/Scraptown | Learned location of Hub_04(d) (-6) 6420 | -8/Scraptown | Learned 12 Materials zone layouts 6420 | -8/Scraptown | Learned 8 Factory zone layouts 6420 | -8/Scraptown | Learned 16 Factory zone layouts 6420 | -8/Scraptown | Learned 20 Factory zone layouts 6420 | -8/Scraptown | Learned 24 Factory zone layouts 6420 | -8/Scraptown | Learned 12 Research zone layouts 6420 | -8/Scraptown | Learned 8 Access zone layouts 6420 | -8/Scraptown | Learned 16 Lower Caves zone layouts 6420 | -8/Scraptown | Learned 20 Upper Caves zone layouts 6420 | -8/Scraptown | Learned 8 Proximity Caves zone layouts 6420 | -8/Scraptown | Learned location of 1 exit from Lower Caves 6420 | -8/Scraptown | Learned location of 1 exit from Proximity Caves 6534 | -8/Scraptown | Found Scrap Suit 6536 | -8/Scraptown | Found Scrap Suit 6550 | -8/Scraptown | Discovered new exit (range 5) 7121 | -8/Scraptown | Given a B- rating by A0-MCA 7126 | -8/Scraptown | Found A0-MCA's Component Scanner 7197 | -8/Scraptown | Self-destructed Last Messages --------------- those bottlenecks! I'm something of a tactics expert myself. But really melee weapons are great for creating shortcuts through all kinds of terrain, and low resource costs mean you can stay in the fight longer. A0-MCA gives you a B-! A0-MCA: Hey wait, take this scanner out into the wild, you could help me populate the wiki with accurate and detailed info to help all the others with the same adventurous spirit. My wiki is where even a lot of the Cyclists do their research too, you know. 07123_ A0-MCA drops A0-MCA's Component Scanner. 07126_ Dropped Wheel. 07126_ Acquired A0-MCA's Component Scanner. 07188_ 93-5X0(c): "Come one, come all! See for yourself a fine selection of the many wondrous pieces in our collection!" 07196_ Dropped A0-MCA's Component Scanner. Map ----- +----------------------------------------------------+ | "#???#X "#???????# "#?#""" """# | | "#???#" "#???????#" #?#" # | | "#???# #???????###### ######?#### ###### | | ############## ####???????##### ########### ###### | | #???????#"""" """"""""""" """""" | | #???????#" | | #???????#" | | #???????#" | | #???????#" | | ######### #???#####" | | ????????# #???#"""" """"""""""""""""" | | ????????# #???#"""" """"""""""""""""" | | ????????# #???#"""" j""###### ####### | | ######### #???#"""" ""# ## | | ## #???#"""" ""# X"# | | """""" # ###?#"""" ""# "" "" ## | | " "" # ""#"#"""" ""# "" "" X"# | | " # """"#"""" ! ""# " " ## | | " # ""#######" "" "" | | " # ###?????#" !!"" "" | | " # #########" !!!""# " " ## | | " "" ![=/!!/* ! ""# "" "" ""# | | """""" # ]!!=!!|[ ""# "" "" ## | | ## / !/[[ ] ! ""# ""# | | ######### /! = ! !!=[=! * ""# ## | | ######### TT ![ ! !&|@!!= !! ""###### ####### | | TT ! * ! !=!/!|[ """"""""""""""""" | | !!!! ]! ! [|!& """"""""""""""""" | | ! !![ ]!|=! [* =! | | ![ !!! !! [ [ / * *=| | | *!! ! ! | !| | * | | [=! = #""""#"!! ==[ | | [ #????#" ! * | | #????#"""""" """"""""""" """" | | ########### ### ####????####### ########### #### | | #??# ## #????????#" "# # | | #??# ## #????????##"" ""## # | | #??# ## #?????????#!" "!## # | | #??# ## #????????##"" ""## # | | #??# ## #????????#" "# # | | #??# ## #????????##"" ""## # | | #??# ## #?????????#/" "=## # | | #??# ## #?????????#"" ""## # | | #??# ## #????????#" """ "########### | | #??############ #????????#### "]" ####?????????? | | #?????????????# #???????????#"###"#????????????? | | #??############ #???????????###?###????????????? | | #??#""""""""""" #???????######################## | | ???#""""" """"" #???????? ##"""##"""##"""## | | ####"""" " "" #????????""""" ## ""## ""##" "## | +----------------------------------------------------+ Best States ------------- Heat Dissipation 39 Energy Generation 14 Energy Capacity 275 Matter Stores 350 Matter Capacity 350 Sight Range 16 Robot Scan Range 16 Terrain Scan Density 10 Jamming Range 12 Armor Coverage 225 Propulsion Shielding 33 Utility Shielding 33 Evasion (%) 55 Recoil Reduction 2 Authchip Count 6 Item Schematics ----------------- Imp. Targeting Computer | -8/Recycling | Hacked Robot Schematics ------------------ None Fabricated ------------ Nothing Alien Tech Used ----------------- None Achievements -------------- None Challenges ------------ None Game ------ Seed PersonalTargetScrapsphere Manual? 0 Play Time 01:10:12 Cumulative 120.7 hours Start 2024.12.10 @ 14:39:30 End 2024.12.30 @ 13:57:26 Sessions 4 Manual Loads 0 Difficulty Rogue Special Mode None Game No. 159 Rogue 159 Adventurer 0 Explorer 0 Win Type - Total 1 Types 1/0/0/0/0/0/0/0/0 Lore% 64 Gallery% 51 Achievement% 38 Wizard Run 0 Options --------- Layout 1 ASCII 0 Keyboard 0 Movement Arrows Keybinds 0 Fullscreen 1 Font 24/Smallcaps Map View 50x40 Zoom Use 0% Tactical HUD 1 Map Filters NONE Filters NONE Steam 1 RUN: 0f2cb4fa-7168-46e6-95ea-bdd1028fe699